bitfinex-derivatives/quotes_SOLF0:USTF0_20241024
["timestamp","ask_amount","ask_price","bid_price","bid_amount"]
[1729759134796,2.8816,173.68,173.65,9.95793814]
[1729759135994,2.8816,173.68,173.66,2.8819]
[1729759136190,2.8811,173.71,173.65,7.07593814]
[1729759136695,2.8811,173.71,173.66,2.8817]
[1729759136909,2.8811,173.71,173.66,7.07593814]
[1729759137288,7.07593814,173.76,173.7,7.07593814]
[1729759139396,2.8808,173.73,173.7,7.07593814]
[1729759141100,2.8809,173.72,173.69,9.95723814]
[1729759141301,7.07593814,173.71,173.67,1.0998]
[1729759141504,7.07593814,173.68,173.62,7.07593814]
[1729759141707,9.95793814,173.66,173.6,7.07593814]
[1729759141897,9.95793814,173.66,173.62,2.8824]
[1729759142403,9.95793814,173.66,173.6,8.51722227]
[1729759143107,9.95793814,173.66,173.6,9.61706227]
[1729759143299,9.95793814,173.66,173.61,2.8826]
[1729759143500,9.95793814,173.66,173.6,8.17577814]
[1729759144602,9.95793814,173.66,173.6,1.09984]
[1729759144813,9.95793814,173.66,173.6,8.17577814]
[1729759145303,9.95793814,173.66,173.63,2.8824]
[1729759145803,5.76,173.78,173.64,2.8821]
[1729759146107,7.07593814,173.68,173.64,2.8821]
[1729759147297,9.95753814,173.68,173.64,2.8821]
[1729759148002,187.05638872,173.78,173.67,7.07593814]
[1729759148200,7.07593814,173.74,173.68,7.07593814]
[1729759148511,7.07593814,173.73,173.63,1.44130794]
[1729759148696,2.881,173.72,173.68,9.95733814]
[1729759149208,7.07593814,173.72,173.68,2.8814]
[1729759150109,9.95683814,173.72,173.68,2.8814]
[1729759150496,2.88243525,173.8,173.69,7.07593814]
[1729759150697,5.7582,173.83,173.71,7.07593814]
[1729759150896,7.07593814,173.76,173.71,7.07593814]
[1729759151309,2.8806,173.74,173.71,9.95693814]
[1729759151710,2.8806,173.74,173.71,2.881]
[1729759151905,2.8805,173.75,173.71,2.881]
[1729759152113,7.07593814,173.76,173.71,2.881]
[1729759152613,7.07593814,173.74,173.71,2.881]
[1729759152807,9.95663814,173.74,173.71,2.881]
[1729759153204,2.87852331,173.8,173.73,2.8807]
[1729759153399,2.8808,173.73,173.66,7.07593814]
[1729759153603,187.00059884,173.84,173.65,1.09977]
[1729759153604,7.07593814,173.68,173.65,1.09977]
[1729759153802,7.07593814,173.68,173.64,1.44093394]
[1729759154015,7.07593814,173.65,173.62,1.44093394]
[1729759154207,7.07593814,173.65,173.6,1.15233]
[1729759154406,7.07593814,173.65,173.63,2.8823]
[1729759154611,7.07593814,173.65,173.61,1.44093394]
[1729759155006,7.07593814,173.65,173.62,2.8824]
[1729759155307,7.07593814,173.64,173.62,2.8824]
[1729759156512,2.8819,173.66,173.62,2.8824]
[1729759159417,2.8819,173.66,173.63,2.8824]
[1729759161918,2.8819,173.66,173.61,1.44133557]
[1729759161919,11.07304677,173.65,173.61,1.44133557]
[1729759162815,2.8823,173.64,173.61,1.44133557]
[1729759163120,2.8823,173.64,173.58,1.09987]
[1729759163319,2.8823,173.64,173.6,2.8827]
[1729759166218,2.8832,173.59,173.49,2.8846]
[1729759166520,11.07304677,173.62,173.43,5.7714]
[1729759166711,11.07304677,173.57,173.45,11.07304677]
[1729759166912,11.07304677,173.6,173.48,11.07304677]
[1729759167125,11.07304677,173.62,173.5,11.07304677]
[1729759167425,11.07304677,173.62,173.51,1.44194597]
[1729759167618,2.883,173.6,173.52,1.44194597]
[1729759167918,11.07304677,173.62,173.53,1.44194597]
[1729759168113,2.8831,173.59,173.55,2.8836]
[1729759168315,11.07304677,173.62,173.56,1.44194597]
[1729759168521,11.07304677,173.6,173.53,1.09952]
[1729759168721,11.07304677,173.6,173.54,1.44193443]
[1729759168921,13.95604677,173.6,173.56,2.8835]
[1729759169422,13.95604677,173.6,173.57,1.44188429]
[1729759169624,13.95604677,173.6,173.56,2.8835]
[1729759170019,13.95604677,173.6,173.57,1.44188429]
[1729759170322,13.95604677,173.6,173.56,2.8835]
[1729759170519,2.883,173.59,173.57,1.44188576]
[1729759170825,2.883,173.59,173.45,2.85217571]
[1729759171019,2.883,173.59,173.55,2.8837]
[1729759171324,2.883,173.59,173.56,1.44188576]
[1729759171523,2.883,173.59,173.57,1.44188576]
[1729759171723,2.883,173.59,173.55,2.8837]
[1729759171916,2.883,173.59,173.56,1.44188576]
[1729759172116,2.883,173.59,173.57,1.44188576]
[1729759172322,2.883,173.59,173.56,2.8835]
[1729759172518,2.883,173.59,173.57,1.44186634]
[1729759172717,2.883,173.59,173.56,2.8835]
[1729759172925,2.883,173.59,173.57,1.44186487]
[1729759173221,2.883,173.59,173.56,2.8835]
[1729759173534,2.883,173.59,173.57,1.44186487]
[1729759173826,2.883,173.59,173.56,2.8835]
[1729759174017,2.883,173.59,173.57,1.44187314]
[1729759174222,2.883,173.59,173.56,2.8835]
[1729759174420,2.883,173.59,173.57,1.44187312]
[1729759174624,2.883,173.59,173.56,2.8835]
[1729759177529,2.883,173.59,173.57,1.44180015]
[1729759177724,2.883,173.59,173.56,2.8835]
[1729759178227,7.08497378,173.57,173.56,2.8835]
[1729759178426,7.08497378,173.57,173.56,4.32536634]
[1729759180232,7.08497378,173.57,173.56,2.8835]
[1729759180427,7.08497378,173.57,173.56,4.32534143]
[1729759180731,7.08497378,173.58,173.56,1.44184143]
[1729759180936,8.64696047,173.71,173.54,7.08497378]
[1729759181235,7.08497378,173.61,173.55,1.44182076]
[1729759181432,7.08497378,173.61,173.57,2.8832]
[1729759181433,9.96767378,173.61,173.57,2.8832]
[1729759182826,7.08497378,173.59,173.57,2.8832]
[1729759183528,7.08497378,173.58,173.54,1.09958]
[1729759183726,7.08497378,173.58,173.56,2.8835]
[1729759183927,7.08497378,173.58,173.57,1.44177023]
[1729759184124,7.08497378,173.58,173.56,2.8835]
[1729759185831,7.08497378,173.58,173.57,2.8834]
[1729759187430,7.08497378,173.58,173.56,2.8835]
[1729759187626,7.08497378,173.58,173.52,1.09965]
[1729759187937,7.08497378,173.55,173.53,1.44180792]
[1729759188233,7.08497378,173.55,173.54,1.44180792]
[1729759189841,7.08497378,173.55,173.54,4.32570792]
[1729759190042,2.8834,173.57,173.54,4.32570792]
[1729759190043,7.08497378,173.56,173.54,4.32570792]
[1729759190247,7.08497378,173.56,173.54,2.8839]
[1729759191650,7.08497378,173.55,173.52,2.8841]
[1729759191847,7.08497378,173.55,173.53,1.44193039]
[1729759192047,7.08497378,173.55,173.48,7.08497378]
[1729759192246,7.08497378,173.55,173.49,1.44192392]
[1729759192447,7.08497378,173.55,173.5,1.44192392]
[1729759192749,7.08497378,173.55,173.51,1.44192392]
[1729759192950,7.08497378,173.55,173.52,1.44192392]
[1729759193151,7.08497378,173.55,173.53,1.44192392]
[1729759193351,7.08497378,173.55,173.48,7.08497378]
[1729759193549,7.08497378,173.55,173.49,1.44192735]
[1729759193746,7.08497378,173.55,173.5,1.44192735]
[1729759193946,7.08497378,173.55,173.52,2.884]
[1729759195657,2.8836,173.56,173.53,2.884]
[1729759195866,7.08497378,173.54,173.53,2.884]
[1729759198257,7.08497378,173.54,173.52,1.44207243]
[1729759198455,7.08497378,173.54,173.49,1.09946]
[1729759198654,7.08497378,173.54,173.5,1.44206812]
[1729759198864,7.08497378,173.54,173.52,2.8841]
[1729759202758,7.08497378,173.54,173.49,1.09946]
[1729759203055,2.91886248,173.63,173.49,1.09946]
[1729759203056,2.91886248,173.63,173.5,1.44209316]
[1729759203259,7.08497378,173.56,173.51,1.44209316]
[1729759203453,7.08497378,173.56,173.53,2.8839]
[1729759204364,7.08497378,173.56,173.53,4.32590991]
[1729759204550,2.8834,173.57,173.54,2.8838]
[1729759204753,7.08497378,173.56,173.54,2.8838]
[1729759204949,8.64033956,173.68,173.54,2.8838]
[1729759205154,7.08497378,173.58,173.53,2.54146991]
[1729759205459,7.08497378,173.58,173.52,8.18443378]
[1729759205662,7.08497378,173.58,173.53,1.44195382]
[1729759205851,7.08497378,173.58,173.54,1.44195382]
[1729759206048,8.64033956,173.68,173.46,5.7701]
[1729759206049,187.15757656,173.69,173.55,8.52677977]
[1729759206263,2.8822,173.65,173.57,7.08497378]
[1729759206454,7.08497378,173.64,173.58,8.52672999]
[1729759206760,7.08497378,173.64,173.58,8.23730378]
[1729759207161,7.08497378,173.64,173.61,2.8827]
[1729759207455,7.08497378,173.64,173.58,8.23730378]
[1729759207456,2.8819,173.67,173.58,8.23730378]
[1729759207665,187.15757656,173.69,173.62,2.8824]
[1729759207666,7.08497378,173.64,173.62,2.8824]
[1729759211764,7.08497378,173.65,173.59,8.23730378]
[1729759211961,7.08497378,173.65,173.63,2.8822]
[1729759225567,5.7596,173.79,173.64,7.08497378]
[1729759225762,0.92885128,173.78,173.66,7.08497378]
[1729759225969,7.08497378,173.72,173.66,7.08497378]
[1729759226167,8.57976996,173.84,173.66,8.23730378]
[1729759226459,7.08497378,173.72,173.66,8.23730378]
[1729759226664,7.08497378,173.72,173.7,2.8812]
[1729759227261,2.8806,173.74,173.71,2.881]
[1729759227472,9.96557378,173.74,173.71,2.881]
[1729759228764,2.8796,173.8,173.74,2.8805]
[1729759228968,7.08497378,173.77,173.71,1.15233]
[1729759229775,7.08497378,173.77,173.72,2.8809]
[1729759229776,2.8803,173.76,173.72,2.8809]
[1729759230366,7.08497378,173.77,173.71,1.15233]
[1729759230566,2.82186996,173.84,173.72,7.08497378]
[1729759230567,7.08497378,173.78,173.72,7.08497378]
[1729759231366,7.08497378,173.78,173.72,8.23730378]
[1729759231573,9.96487378,173.78,173.74,2.8804]
[1729759234270,7.08497378,173.78,173.75,2.8802]
[1729759234870,9.96487378,173.79,173.76,2.8802]
[1729759235776,4.116,173.82,173.76,7.08497378]
[1729759235979,8.25237378,173.83,173.77,7.08497378]
[1729759236270,7.08497378,173.81,173.76,8.23730378]
[1729759236476,7.08497378,173.81,173.78,2.8798]
[1729759237768,2.8787,173.86,173.77,1.15233]
[1729759237973,3.6212,173.88,173.77,8.23730378]
[1729759238178,7.08497378,173.84,173.77,8.23730378]
[1729759238572,2.8792,173.83,173.79,2.8797]
[1729759238877,7.08497378,173.82,173.79,2.8797]
[1729759239077,7.08497378,173.84,173.79,7.08497378]
[1729759239379,7.08497378,173.85,173.81,2.8794]
[1729759239775,3.6212,173.88,173.8,8.23730378]
[1729759239975,7.08497378,173.87,173.82,7.08497378]
[1729759240279,4.18116735,173.93,173.82,8.23730378]
[1729759240475,7.08497378,173.88,173.84,2.8788]
[1729759241075,2.8778,173.91,173.86,2.8785]
[1729759241273,7.08497378,173.89,173.86,2.8785]
[1729759242373,9.96307378,173.89,173.86,2.8785]
[1729759243678,9.96307378,173.89,173.85,4.03103]
[1729759243879,7.08497378,173.88,173.85,1.15233]
[1729759245084,9.96307378,173.89,173.85,4.03103]
[1729759247378,7.08497378,173.86,173.85,1.15233]
[1729759247579,7.08497378,173.86,173.84,2.8788]
[1729759247780,3.7356,173.93,173.77,1.2094]
[1729759247781,7.08497378,173.85,173.77,1.2094]
[1729759248086,7.08497378,173.8,173.77,2.36041]
[1729759248990,7.08497378,173.8,173.79,2.8797]
[1729759249682,7.08497378,173.8,173.79,4.03071]
[1729759251584,7.08497378,173.8,173.79,1.15101]
[1729759251780,7.08497378,173.8,173.78,2.8798]
[1729759251981,7.08497378,173.79,173.78,2.8798]
[1729759252782,7.08497378,173.8,173.79,2.8796]
[1729759253680,0.08497378,173.8,173.79,2.8796]
[1729759254992,0.08497378,173.8,173.79,3.97972]
[1729759256194,2.8791,173.83,173.79,3.97972]
[1729759256490,7.08497378,173.81,173.79,3.97972]
[1729759256688,2.8791,173.83,173.79,3.97972]
[1729759256897,7.08497378,173.81,173.79,3.97972]
[1729759257094,2.8787,173.85,173.79,1.10012]
[1729759257394,7.08497378,173.83,173.79,1.10012]
[1729759257594,0.08497378,173.83,173.79,1.10012]
[1729759258398,0.08497378,173.83,173.82,2.8791]
[1729759258701,2.8786,173.86,173.82,2.8791]
[1729759258996,7.08497378,173.83,173.82,3.97922]
[1729759259193,2.8786,173.86,173.82,3.97922]
[1729759259495,7.08497378,173.83,173.82,3.97922]
[1729759260198,0.08497378,173.83,173.82,3.97922]
[1729759262306,7.08497378,173.84,173.82,3.97922]
[1729759265898,2.8783,173.88,173.82,1.10012]
[1729759266102,6.62212513,173.93,173.82,1.10012]
[1729759266305,7.08497378,173.86,173.82,1.10012]
[1729759266503,7.08497378,173.86,173.83,2.8789]
[1729759266900,7.08497378,173.86,173.83,3.97902]
[1729759267495,9.96357378,173.86,173.83,3.97902]
[1729759267695,7.08497378,173.85,173.83,3.97902]
[1729759271402,7.08497378,173.85,173.8,1.10012]
[1729759271608,7.08497378,173.81,173.74,7.08497378]
[1729759271807,7.08497378,173.81,173.8,2.8795]
[1729759272007,7.08497378,173.82,173.8,2.8795]
[1729759274610,7.08497378,173.82,173.79,1.09996]
[1729759274611,7.08497378,173.85,173.79,8.18493378]
[1729759275005,7.08497378,173.84,173.79,8.18493378]
[1729759275614,7.08497378,173.84,173.82,2.8791]
[1729759278614,7.08497378,173.83,173.81,1.09996]
[1729759278917,7.08497378,173.83,173.77,1.09996]
[1729759278918,9.96417378,173.83,173.77,1.09996]
[1729759279121,7.08497378,173.82,173.77,7.08497378]
[1729759279419,7.08497378,173.82,173.8,2.8795]
[1729759280319,7.08497378,173.82,173.79,1.09996]
[1729759280521,7.08497378,173.81,173.76,1.09996]
[1729759280705,7.08497378,173.77,173.75,1.15134]
[1729759280910,7.08497378,173.77,173.68,1.43999]
[1729759280911,7.08497378,173.77,173.71,7.08497378]
[1729759281111,7.08497378,173.77,173.71,8.23631378]
[1729759281315,7.08497378,173.77,173.71,1.10009]
[1729759281522,7.08497378,173.75,173.71,1.15157]
[1729759281819,7.08497378,173.74,173.71,1.15157]
[1729759282020,7.08497378,173.72,173.67,110.34756521]
[1729759282620,7.08497378,173.72,173.7,2.8811]
[1729759283016,7.08497378,173.72,173.71,2.881]
[1729759285011,7.08497378,173.72,173.69,1.15157]
[1729759285012,7.08497378,173.72,173.7,2.8812]
[1729759285320,7.08497378,173.73,173.69,1.15157]
[1729759285917,7.08497378,173.73,173.71,2.881]
[1729759287828,7.08497378,173.73,173.7,1.15157]
[1729759288121,7.08497378,173.72,173.7,2.8812]
[1729759291625,7.08497378,173.72,173.71,2.881]
[1729759292721,7.08497378,173.73,173.71,2.881]
[1729759293118,7.08497378,173.73,173.71,4.03257]
[1729759296628,7.08497378,173.76,173.74,2.8805]
[1729759296824,7.08497378,173.75,173.73,1.15157]
[1729759297020,2.5487,173.84,173.7,1.15157]
[1729759297021,7.08497378,173.74,173.7,1.15157]
[1729759297225,7.08497378,173.74,173.7,2.59219037]
[1729759297526,7.08497378,173.72,173.71,2.881]
[1729759301520,9.96587378,173.72,173.69,1.1]
[1729759301720,7.08497378,173.71,173.66,1.10019]
[1729759301918,5.42026545,173.84,173.54,17.3]
[1729759301919,7.08497378,173.75,173.69,7.08497378]
[1729759302127,7.08497378,173.75,173.7,7.08497378]
[1729759302325,7.08497378,173.75,173.7,8.18516378]
[1729759302629,7.08497378,173.75,173.72,2.8808]
[1729759302831,7.08497378,173.75,173.72,3.98099]
[1729759303236,7.08497378,173.75,173.72,1.10019]
[1729759303532,9.96537378,173.75,173.71,3.98119]
[1729759303731,9.96537378,173.75,173.71,2.881]
[1729759303930,7.08497378,173.74,173.71,2.881]
[1729759304130,7.08497378,173.72,173.7,1.10019]
[1729759304435,7.08497378,173.72,173.69,2.8813]
[1729759304622,7.08497378,173.74,173.69,7.08497378]
[1729759304821,7.08497378,173.74,173.69,8.23674378]
[1729759305034,7.08497378,173.74,173.69,8.18500378]
[1729759305241,7.08497378,173.74,173.71,2.881]
[1729759307938,7.08497378,173.72,173.7,1.10003]
[1729759308141,7.08497378,173.72,173.7,2.8812]
[1729759313043,7.08497378,173.71,173.67,4.32236802]
[1729759313240,7.08497378,173.69,173.64,7.08497378]
[1729759313442,7.08497378,173.69,173.65,1.44083369]
[1729759313641,7.08497378,173.69,173.67,2.8816]
[1729759313839,9.96637378,173.69,173.65,1.10003]
[1729759314040,7.08497378,173.67,173.65,1.10003]
[1729759314241,7.08497378,173.67,173.66,2.8818]
[1729759314845,7.08497378,173.67,173.64,1.09993]
[1729759315041,7.08497378,173.65,173.63,2.8823]
[1729759315745,7.08497378,173.67,173.64,2.8822]
[1729759316433,7.08497378,173.67,173.63,2.8823]
[1729759316639,7.08497378,173.65,173.63,2.8823]
[1729759320547,7.08497378,173.69,173.66,2.8818]
[1729759320740,7.08497378,173.69,173.64,7.08497378]
[1729759320939,7.08497378,173.68,173.64,1.10003]
[1729759322359,7.08497378,173.68,173.65,2.882]
[1729759325450,7.08497378,173.66,173.65,2.882]
[1729759325653,7.08497378,173.66,173.63,3.98233]
[1729759325950,7.08497378,173.65,173.59,8.32977378]
[1729759326160,7.08497378,173.63,173.59,8.32977378]
[1729759326454,7.08497378,173.63,173.62,2.8825]
[1729759327052,9.96737378,173.63,173.59,2.883]
[1729759327353,7.08497378,173.61,173.59,2.883]
[1729759327754,7.08497378,173.61,173.59,3.98296]
[1729759329751,7.08497378,173.61,173.57,2.8833]
[1729759330246,7.08497378,173.58,173.55,1.09996]
[1729759330443,187.09064675,173.75,173.55,2.8836]
[1729759330444,7.08497378,173.56,173.55,2.8836]
[1729759330849,7.08497378,173.58,173.55,2.8836]
[1729759331156,7.08497378,173.59,173.55,2.8836]
[1729759331455,1.2026,173.7,173.53,7.08497378]
[1729759331651,7.08497378,173.59,173.56,2.8835]
[1729759331857,7.08497378,173.59,173.53,7.08497378]
[1729759332550,7.08497378,173.58,173.51,1.2405]
[1729759332753,7.08497378,173.56,173.51,1.2405]
[1729759332948,7.08497378,173.57,173.52,7.08497378]
[1729759333258,7.08497378,173.57,173.53,2.884]
[1729759335258,7.08497378,173.57,173.52,7.08497378]
[1729759335458,7.08497378,173.57,173.54,2.8839]
[1729759336454,7.08497378,173.57,173.54,3.98367]
[1729759339366,1.1677,173.63,173.54,1.09977]
[1729759339563,7.08497378,173.58,173.54,1.09977]
[1729759340867,7.08497378,173.58,173.55,2.8837]
[1729759341169,7.08497378,173.58,173.55,1.09977]
[1729759343663,7.08497378,173.56,173.54,2.8838]
[1729759344372,7.08497378,173.56,173.53,3.98377]
[1729759346977,9.96827378,173.58,173.54,2.8838]
[1729759347173,7.08497378,173.58,173.53,1.09977]
[1729759347374,9.96787378,173.6,173.54,7.08497378]
[1729759347575,7.08497378,173.6,173.54,7.08497378]
[1729759347974,7.08497378,173.6,173.54,8.18474378]
[1729759348482,2.8831,173.59,173.55,2.8836]
[1729759349085,2.8831,173.59,173.55,3.98337]
[1729759349480,9.96807378,173.59,173.55,3.98337]
[1729759349682,9.96807378,173.59,173.54,3.98357]
[1729759349979,7.08497378,173.57,173.54,3.98357]
[1729759350179,7.08497378,173.57,173.54,2.8838]
[1729759351384,1.1677,173.63,173.5,2.5434]
[1729759351385,7.08497378,173.55,173.5,8.18462378]
[1729759351579,7.08497378,173.55,173.5,8.23747378]
[1729759351787,7.08497378,173.54,173.5,1.1525]
[1729759352086,7.08497378,173.54,173.51,2.8843]
[1729759352677,7.08497378,173.54,173.51,4.0368]
[1729759355684,7.08497378,173.54,173.51,1.1525]
[1729759355986,7.08497378,173.54,173.52,2.884]
[1729759356379,2.8832,173.59,173.54,2.8837]
[1729759356574,7.08497378,173.58,173.52,7.08497378]
[1729759356780,7.08497378,173.56,173.52,7.08497378]
[1729759356987,7.08497378,173.56,173.52,8.23747378]
[1729759357384,7.08497378,173.56,173.52,1.1525]
[1729759358388,7.08497378,173.56,173.53,2.884]
[1729759358782,2.8834,173.57,173.53,2.884]
[1729759358783,7.08497378,173.55,173.53,2.884]
[1729759359793,7.08497378,173.56,173.53,2.884]
[1729759360186,7.08497378,173.57,173.52,7.08497378]
[1729759360386,7.08497378,173.57,173.54,2.8837]
[1729759363188,7.08497378,173.58,173.52,8.23747378]
[1729759363389,7.08497378,173.58,173.52,7.08497378]
[1729759363590,7.08497378,173.58,173.52,8.23747378]
[1729759364380,9.96827378,173.58,173.54,2.8837]
[1729759364580,7.08497378,173.57,173.54,2.8837]
[1729759365989,7.08497378,173.55,173.53,2.884]
[1729759366184,7.08497378,173.55,173.5,1.09952]
[1729759366494,7.08497378,173.55,173.52,2.884]
[1729759368495,7.08497378,173.56,173.52,2.884]
[1729759371399,9.96857378,173.56,173.5,8.18449378]
[1729759373403,9.96857378,173.56,173.52,2.8842]
[1729759376304,9.96857378,173.56,173.52,4.32612947]
[1729759376509,9.96857378,173.56,173.52,2.8842]
[1729759376807,9.96857378,173.56,173.52,4.32612947]
[1729759377008,9.96857378,173.56,173.52,2.8842]
[1729759377307,9.96857378,173.56,173.52,4.32612947]
[1729759377504,9.96857378,173.56,173.52,2.8842]
[1729759377706,9.96857378,173.56,173.52,4.32612947]
[1729759377894,9.96857378,173.56,173.52,2.8842]
[1729759378099,9.96857378,173.56,173.52,4.32612947]
[1729759378300,7.08497378,173.54,173.53,1.44192947]
[1729759378513,7.08497378,173.54,173.52,2.8842]
[1729759379311,7.08497378,173.54,173.53,1.44194121]
[1729759379809,9.96857378,173.56,173.53,1.44194121]
[1729759380396,9.96857378,173.56,173.52,2.8842]
[1729759380596,9.96857378,173.56,173.53,1.44194121]
[1729759380807,9.96857378,173.56,173.52,2.8842]
[1729759381299,9.96857378,173.56,173.53,1.44201235]
[1729759381497,9.96857378,173.56,173.52,2.8842]
[1729759381701,9.96857378,173.56,173.53,1.44200855]
[1729759381903,9.96857378,173.56,173.52,2.8842]
[1729759382108,7.08497378,173.56,173.53,1.44200209]
[1729759382308,7.08497378,173.56,173.54,1.44192301]
[1729759382508,7.08497378,173.56,173.53,2.8839]
[1729759382712,7.08497378,173.56,173.54,1.44193866]
[1729759383009,7.08497378,173.56,173.49,7.08497378]
[1729759383213,7.08497378,173.56,173.52,2.8841]
[1729759383505,9.96847378,173.56,173.53,1.44194023]
[1729759383710,9.96847378,173.56,173.54,1.44194023]
[1729759383898,9.96847378,173.56,173.52,2.8841]
[1729759384103,9.96847378,173.56,173.53,1.4419376]
[1729759384302,2.8835,173.56,173.54,1.4419376]
[1729759384504,7.08497378,173.55,173.52,2.8841]
[1729759384705,7.08497378,173.55,173.53,1.44201235]
[1729759385005,7.08497378,173.55,173.52,2.8841]
[1729759385207,7.08497378,173.55,173.53,1.44201913]
[1729759385412,7.08497378,173.55,173.52,2.8841]
[1729759385712,7.08497378,173.55,173.53,1.44204379]
[1729759385912,7.08497378,173.55,173.52,2.8841]
[1729759386115,7.08497378,173.55,173.53,1.44206131]
[1729759386411,7.08497378,173.55,173.52,2.8841]
[1729759386620,7.08497378,173.55,173.53,1.44206131]
[1729759386912,7.08497378,173.55,173.54,1.44206131]
[1729759389617,7.08497378,173.55,173.5,2.8844]
[1729759389804,7.08497378,173.51,173.5,2.8844]
[1729759390206,7.08497378,173.51,173.5,4.32650174]
[1729759391416,7.08497378,173.51,173.5,1.44210174]
[1729759392508,1.1677,173.63,173.5,8.52707552]
[1729759392708,7.08497378,173.56,173.51,1.44210174]
[1729759393012,7.08497378,173.56,173.53,2.884]
[1729759393211,7.08497378,173.56,173.54,1.44210174]
[1729759393410,7.08497378,173.56,173.55,1.44210174]
[1729759396217,9.96847378,173.56,173.55,1.44210174]
[1729759396920,9.96847378,173.56,173.52,2.8841]
[1729759397108,7.08497378,173.53,173.52,2.8841]
[1729759397311,7.08497378,173.53,173.52,4.32614106]
[1729759400422,7.08497378,173.53,173.52,2.8841]
[1729759400625,7.08497378,173.53,173.52,4.32631059]
[1729759402226,7.08497378,173.55,173.52,4.32631059]
[1729759402522,7.08497378,173.55,173.53,1.44221107]
[1729759402721,7.08497378,173.55,173.54,1.44221107]
[1729759404627,9.96867378,173.55,173.54,1.44221107]
[1729759404922,7.08497378,173.55,173.54,1.44221107]
[1729759405416,7.08497378,173.56,173.54,1.44221107]
[1729759405615,7.08497378,173.56,173.55,1.44221107]
[1729759407522,7.08497378,173.56,173.54,2.8838]
[1729759407724,7.08497378,173.56,173.55,1.44214753]
[1729759408527,9.96847378,173.56,173.55,1.44214753]
[1729759411224,9.96847378,173.56,173.54,2.8839]
[1729759411427,9.96847378,173.56,173.55,1.44215944]
[1729759411828,7.08497378,173.56,173.55,1.44215944]
[1729759412029,7.08497378,173.56,173.55,4.32585944]
[1729759412228,1.1677,173.63,173.55,1.44215944]
[1729759412425,1.1677,173.63,173.56,1.44215944]
[1729759412426,7.08497378,173.59,173.56,1.44215944]
[1729759412733,7.08497378,173.59,173.57,4.32545944]
[1729759412929,7.08497378,173.59,173.58,1.44215944]
[1729759414333,9.96797378,173.59,173.58,1.44215944]
[1729759414829,2.8835,173.57,173.51,1.09993]
[1729759415024,7.08497378,173.55,173.49,7.08497378]
[1729759415339,7.08497378,173.55,173.49,8.18493378]
[1729759415524,7.08497378,173.55,173.5,2.8844]
[1729759415725,7.08497378,173.55,173.49,8.18493378]
[1729759416229,7.08497378,173.56,173.5,7.08497378]
[1729759416426,7.08497378,173.56,173.5,8.18493378]
[1729759416627,7.08497378,173.56,173.54,2.8837]
[1729759419140,2.8833,173.58,173.54,2.8837]
[1729759419341,7.08497378,173.56,173.54,2.8837]
[1729759419540,7.08497378,173.56,173.52,1.09996]
[1729759419938,1.1677,173.63,173.54,7.08497378]
[1729759420142,7.08497378,173.59,173.56,2.8835]
[1729759420343,7.08497378,173.57,173.56,2.8835]
[1729759422241,7.08497378,173.57,173.54,1.09996]
[1729759422547,7.08497378,173.57,173.55,2.8836]
[1729759423447,7.08497378,173.59,173.54,1.09996]
[1729759423657,7.08497378,173.61,173.57,2.8833]
[1729759425344,7.08497378,173.6,173.57,2.8833]
[1729759426850,7.08497378,173.6,173.58,1.44183976]
[1729759427055,7.08497378,173.6,173.59,1.44183976]
[1729759432751,7.08497378,173.6,173.58,2.8832]
[1729759432950,7.08497378,173.6,173.59,1.44182731]
[1729759436753,2.8833,173.58,173.54,2.8838]
[1729759436957,7.08497378,173.55,173.48,7.08497378]
[1729759437257,7.08497378,173.55,173.5,1.1529]
[1729759437446,7.08497378,173.53,173.49,1.1529]
[1729759437646,7.08497378,173.53,173.47,11.89760378]
[1729759438259,7.08497378,173.53,173.52,2.8842]
[1729759438959,7.08497378,173.54,173.52,2.8842]
[1729759440556,7.08497378,173.57,173.52,7.08497378]
[1729759441058,7.08497378,173.55,173.53,2.8839]
[1729759442656,7.08497378,173.54,173.51,2.8842]
[1729759443062,7.08497378,173.54,173.52,2.8841]
[1729759444257,7.08497378,173.54,173.5,3.98433]
[1729759444455,7.08497378,173.54,173.49,1.09993]
[1729759445063,7.08497378,173.52,173.5,2.8845]
[1729759446061,7.08497378,173.52,173.51,2.8844]
[1729759446262,7.08497378,173.52,173.49,1.09993]
[1729759446569,7.08497378,173.51,173.47,4.81254]
[1729759446863,7.08497378,173.51,173.48,2.8848]
[1729759447565,7.08497378,173.51,173.48,3.98476]
[1729759449160,7.08497378,173.51,173.48,1.09996]